bitfinex/quotes_ETHUSD_20260310
["timestamp","ask_amount","ask_price","bid_price","bid_amount"]
[1773121881872,2.73980388,2044.5,2044.1,0.61830982]
[1773121881873,2.73982667,2044.5,2044.1,0.61830982]
[1773121882077,1.81950427,2044.5,2044.1,0.61830982]
[1773121884176,0.59665806,2044.4,2044.1,0.61830982]
[1773121884402,0.59665806,2044.4,2044.2,0.0011]
[1773121884933,0.001,2044.3,2044.2,0.0011]
[1773121886908,0.9213224,2044.3,2044.2,0.0011]
[1773121892428,2.74089294,2044.3,2044.2,0.0011]
[1773121892743,0.59665806,2044.2,2044.0,0.0011]
[1773121892906,1.51698046,2044.2,2044.0,0.0011]
[1773121893322,0.9203224,2044.1,2044.0,0.0011]
[1773121895210,0.9203224,2044.1,2044.0,0.57811122]
[1773121896827,0.55384798,2044.3,2044.0,0.57811122]
[1773121897025,0.9203224,2044.2,2044.0,0.57811122]
[1773121898031,0.001,2044.1,2044.0,0.0011]
[1773121900641,0.001,2044.1,2044.0,0.57811122]
[1773121901413,0.001,2044.3,2044.1,0.57701122]
[1773121901613,0.9203224,2044.2,2044.1,0.57701122]
[1773121904639,0.9203224,2044.2,2044.0,0.57811122]
[1773121906773,0.9203224,2044.2,2043.7,0.0011]
[1773121906774,0.55284798,2043.9,2043.7,0.0011]
[1773121907050,0.55284798,2043.7,2043.4,0.0011]
[1773121907255,0.9170224,2043.8,2043.5,0.57701122]
[1773121907434,0.55284798,2044.1,2043.5,0.57701122]
[1773121907435,0.9170224,2043.7,2043.5,0.57701122]
[1773121907631,0.9170224,2044.0,2043.5,0.57701122]
[1773121907951,0.9170224,2044.0,2043.7,0.57701122]
[1773121908166,0.001,2044.3,2043.7,0.57701122]
[1773121908358,0.9170224,2044.2,2043.7,0.57701122]
[1773121908522,1.46987038,2044.2,2043.7,0.57701122]
[1773121908724,1.46987038,2044.1,2043.7,1.22326461]
[1773121908962,0.9170224,2044.1,2043.8,0.57701122]
[1773121910421,0.9180224,2044.1,2043.8,0.57701122]
[1773121910932,0.9180224,2044.1,2043.9,0.56539718]
[1773121911147,0.9170224,2044.0,2043.9,0.56539718]
[1773121911638,0.001,2044.1,2043.9,0.56539718]
[1773121911841,0.9180224,2044.1,2043.9,0.56539718]
[1773121912042,0.001,2044.1,2043.9,0.56539718]
[1773121915275,0.9180224,2044.1,2044.0,0.56539718]
[1773121918393,0.9180224,2044.1,2044.0,1.78848915]
[1773121920173,0.001,2044.3,2044.1,0.56539718]
[1773121920340,0.53575688,2044.6,2044.3,0.56539718]
[1773121921238,0.53575688,2044.5,2044.1,1.78838089]
[1773121921438,0.53575688,2044.5,2044.1,1.22298371]
[1773121922171,0.53575688,2044.5,2044.1,1.78838089]
[1773121922967,0.53575688,2044.4,2043.8,0.56539718]
[1773121923170,0.001,2043.9,2043.8,0.56539718]
[1773121923351,0.53575688,2044.2,2043.9,0.56539718]
[1773121928283,4.89115614,2044.6,2043.9,1.78849867]
[1773121928284,0.5450967,2044.4,2043.9,1.78849867]
[1773121929587,0.5450967,2044.4,2044.0,0.59130155]
[1773121931388,0.5450967,2044.4,2043.6,5.8522165]
[1773121931389,1.22286729,2044.4,2043.7,1.22327151]
[1773121931592,0.5450967,2044.5,2043.8,0.59130155]
[1773121931888,1.404,2044.7,2044.2,0.59130155]
[1773121931889,0.5460967,2044.7,2044.2,0.59130155]
[1773121933450,1.407,2045.2,2044.6,0.59130155]
[1773121933686,0.5450967,2045.1,2044.6,0.59130155]
[1773121935191,0.001,2044.9,2044.6,0.59130155]
[1773121935695,0.001,2044.9,2044.8,0.59130155]
[1773121936384,1.91104701,2045.3,2044.8,0.59130155]
[1773121936579,0.50304701,2045.2,2044.8,0.59130155]
[1773121937681,0.50270667,2045.2,2044.8,0.59130155]
[1773121937878,0.50270667,2045.2,2044.8,1.81391054]
[1773121940088,1.90691913,2045.6,2045.1,0.59130155]
[1773121940267,0.49991913,2045.5,2045.1,0.59130155]
[1773121940594,1.90691913,2045.6,2045.1,0.59130155]
[1773121940790,0.49991913,2045.6,2045.1,0.59130155]
[1773121941005,0.49991913,2045.6,2045.3,0.59130155]
[1773121941491,1.22201583,2045.8,2045.3,0.59130155]
[1773121941700,0.49785379,2045.8,2045.3,0.59130155]
[1773121941865,1.407,2046.0,2045.5,0.59130155]
[1773121941866,0.49785379,2045.9,2045.5,0.59130155]
[1773121942368,1.90485379,2046.1,2045.5,0.59130155]
[1773121942596,1.71971754,2046.1,2045.6,0.95781831]
[1773121942759,1.71971754,2046.1,2045.7,0.59130155]
[1773121943088,1.71969722,2046.1,2045.7,0.59130155]
[1773121943268,0.49646715,2046.0,2045.7,0.59130155]
[1773121943673,1.22184343,2046.1,2045.7,0.59130155]
[1773121944075,1.71692851,2046.1,2045.7,0.59130155]
[1773121944478,0.49508508,2046.0,2045.5,1.81346981]
[1773121945071,0.49508508,2046.0,2045.5,1.22216826]
[1773121945277,0.49508508,2046.0,2045.6,0.59130155]
[1773121945668,0.49508508,2046.0,2045.4,0.59130155]
[1773121945865,1.71428698,2045.9,2045.4,0.59130155]
[1773121946070,0.49233088,2045.9,2045.5,0.59130155]
[1773121946795,1.22381775,2046.2,2045.7,0.59130155]
[1773121946974,1.71478351,2046.2,2045.7,0.59130155]
[1773121947589,4.88703,2046.3,2045.4,1.22224578]
[1773121947590,0.5450967,2046.3,2045.9,0.59130155]
[1773121948173,1.76685775,2046.3,2045.9,0.59130155]
[1773121948871,1.22176105,2046.3,2045.9,0.59130155]
[1773121949073,0.002,2046.0,2045.9,0.59130155]
[1773121949696,0.002,2046.0,2045.7,0.59130155]
[1773121951100,0.002,2046.0,2045.8,0.59130155]
[1773121953799,0.5470967,2046.3,2045.9,0.53463998]
[1773121954000,1.76883449,2046.3,2045.9,0.53463998]
[1773121955306,0.57185911,2046.2,2045.9,0.53463998]
[1773121956831,1.79368862,2046.2,2045.9,0.53463998]
[1773121957505,0.57185911,2046.1,2045.7,0.53463998]
[1773121958221,1.22182951,2046.2,2045.7,0.53463998]
[1773121958698,0.57185911,2046.1,2045.7,0.53463998]
[1773121959013,1.79375549,2046.0,2045.7,0.53463998]
[1773121959187,1.22189638,2046.0,2045.7,0.53463998]
[1773121959390,1.22189638,2046.0,2045.3,1.75690695]
[1773121959391,0.57185911,2045.9,2045.3,1.75690695]
[1773121959587,0.57185911,2045.9,2045.0,0.001]
[1773121959588,0.57185911,2045.8,2045.2,0.53463998]
[1773121961097,0.57185911,2045.6,2045.2,0.53463998]
[1773121961495,0.57185911,2045.6,2045.4,0.001]
[1773121961696,0.57185911,2045.5,2045.0,0.001]
[1773121962036,0.57185911,2045.5,2045.2,0.001]
[1773121962626,0.57185911,2045.5,2045.0,0.001]
[1773121964130,0.57185911,2045.3,2045.0,0.001]
[1773121964295,0.57185911,2045.2,2045.0,0.001]
[1773121965927,1.97785911,2045.1,2045.0,0.001]
[1773121966717,3.20029322,2045.1,2045.0,0.001]
[1773121968931,0.57185911,2045.7,2045.0,0.53563998]
[1773121969228,0.57185911,2045.4,2045.0,0.001]
[1773121971028,1.79417368,2045.3,2045.0,0.001]
[1773121971333,1.397,2045.2,2045.0,0.001]
[1773121974731,3.19517476,2045.3,2045.2,0.001]
[1773121974929,0.002,2045.8,2045.2,0.52274062]
[1773121974930,1.77077947,2045.8,2045.2,0.52274062]
[1773121975099,1.402,2045.7,2045.2,0.52274062]
[1773121975304,0.54674797,2045.6,2045.2,0.001]
[1773121975499,0.54674797,2045.6,2045.2,0.52274062]
[1773121975905,0.54874797,2045.6,2045.2,0.001]
[1773121976306,0.54874797,2045.6,2045.2,0.52274062]
[1773121976937,0.54874797,2045.6,2045.2,1.74511407]
[1773121977230,1.77090524,2045.6,2045.2,0.52274062]
[1773121977603,0.54874797,2045.6,2045.2,0.52274062]
[1773121977915,0.54874797,2045.6,2045.2,1.7451048]
[1773121978747,1.7708894,2045.6,2045.2,0.52274062]
[1773121978916,1.7708894,2045.6,2045.2,1.74511485]
[1773121979242,1.7708894,2045.6,2045.2,0.52274062]
[1773121979544,1.7708894,2045.6,2045.2,1.74511206]
[1773121980244,0.54874797,2045.6,2045.2,1.74511206]
[1773121980539,0.002,2045.6,2045.3,0.52174062]
[1773121980842,0.002,2045.6,2045.2,1.22337252]
[1773121980843,0.54674797,2045.5,2045.2,1.22337252]
[1773121981040,0.54874797,2045.6,2045.2,1.74511314]
[1773121981229,1.77089265,2045.6,2045.3,0.52174062]
[1773121981416,3.17689265,2045.6,2045.3,0.52174062]
[1773121982446,1.408,2045.6,2045.3,0.52174062]
[1773121982744,0.002,2046.0,2045.6,0.52174062]
[1773121983344,0.54874797,2046.0,2045.6,0.52174062]
[1773121983517,0.53741254,2045.8,2045.3,0.53102789]
[1773121983715,0.53741254,2045.8,2045.2,0.53202789]
[1773121985337,0.53741254,2045.6,2045.2,0.53202789]
[1773121985547,0.53741254,2045.5,2045.2,0.53202789]
[1773121987937,1.94141254,2045.6,2045.2,0.53202789]
[1773121988137,1.94341254,2045.6,2045.3,0.53102789]
[1773121989166,3.16554989,2045.6,2045.4,0.001]
[1773121989464,3.16754989,2045.6,2045.4,0.001]
[1773121990143,0.53741254,2045.5,2045.4,0.001]
[1773121990345,0.53741254,2045.5,2045.2,0.001]
[1773121990346,0.95597142,2045.5,2045.2,0.001]
[1773121990664,0.53741254,2045.4,2045.0,0.001]
[1773121991867,1.75967714,2045.4,2045.0,0.53202789]
[1773121992067,1.408,2045.5,2045.0,0.53202789]
[1773121992475,1.94541254,2045.5,2045.0,0.53202789]
[1773121993060,0.53741254,2045.4,2045.0,0.53202789]
[1773121994478,1.7597207,2045.4,2045.0,0.53202789]
[1773121995486,1.409,2045.4,2045.1,0.53102789]
[1773121995685,1.22414137,2045.6,2045.1,0.53102789]
[1773121995986,3.17055391,2045.6,2045.1,0.53102789]
[1773121996691,3.17055391,2045.6,2045.1,1.22243217]
[1773121996865,3.17055391,2045.6,2045.2,0.53102789]
[1773121997478,0.53741254,2045.5,2045.2,0.53102789]
[1773121997782,0.53741254,2045.5,2045.1,0.53102789]
[1773121998566,0.53741254,2045.5,2045.0,0.001]
[1773121998782,0.53741254,2045.3,2045.0,0.001]
[1773121999767,0.53741254,2045.3,2045.0,0.53202789]
[1773122001998,0.53741254,2045.3,2045.2,0.001]
[1773122002873,0.53941254,2045.4,2045.2,0.001]
[1773122012337,0.002,2045.4,2045.2,0.53202789]
[1773122012525,1.415,2045.3,2045.2,0.53202789]
[1773122013525,1.415,2045.3,2044.9,0.001]
[1773122013526,0.5380337,2045.2,2044.9,0.001]
[1773122014117,0.5380337,2045.2,2044.9,0.54990151]
[1773122015525,1.416,2045.3,2044.9,0.54990151]
[1773122015725,1.416,2045.3,2045.1,0.54890151]
[1773122016151,1.416,2045.3,2045.2,0.001]
[1773122016645,0.002,2045.4,2045.2,0.54990151]
[1773122016821,1.22416687,2045.6,2045.3,0.54890151]
[1773122016822,1.418,2045.6,2045.3,0.54890151]
[1773122017625,2.64014448,2045.6,2045.3,0.54890151]
[1773122017822,1.9560337,2045.6,2045.3,0.54890151]
[1773122018127,0.5380337,2045.5,2045.2,0.001]
[1773122019345,1.417,2045.4,2045.2,0.001]
[1773122019545,1.9550337,2045.4,2045.2,0.001]
[1773122019859,1.417,2045.4,2045.2,0.001]
[1773122020752,1.76026055,2045.5,2045.2,0.001]
[1773122021050,1.418,2045.4,2045.2,0.001]
[1773122024544,3.17830721,2045.4,2045.2,0.001]
[1773122024778,0.5380337,2045.3,2044.9,0.001]
[1773122025643,0.5380337,2045.1,2044.7,0.001]
[1773122027258,1.76052758,2045.0,2044.7,0.001]
[1773122029469,1.42,2044.9,2044.7,0.001]
[1773122030176,1.9580337,2044.9,2044.7,0.001]
[1773122031278,1.76064715,2044.8,2044.7,0.001]
[1773122032681,0.5380337,2044.7,2044.2,0.54890151]
[1773122033667,1.22261522,2044.8,2044.3,0.54890151]
[1773122033872,1.422,2044.7,2044.3,0.54890151]
[1773122034980,1.95419194,2044.7,2044.3,0.54890151]
[1773122035281,1.22243411,2045.1,2044.4,0.5104947]
[1773122035595,1.422,2045.0,2044.5,1.22279285]
[1773122035768,1.422,2045.0,2044.6,0.5104947]
[1773122036081,1.422,2045.1,2044.6,0.5104947]
[1773122036683,0.002,2045.2,2044.6,0.5104947]
[1773122036881,2.64637677,2045.2,2044.6,0.5104947]
[1773122038068,2.64637677,2045.2,2044.8,0.5104947]
[1773122038383,1.424,2045.2,2044.8,0.5104947]
[1773122038874,0.002,2045.2,2044.8,0.5104947]
[1773122039074,1.425,2045.2,2044.8,0.5104947]
[1773122039591,2.64737478,2045.2,2044.8,0.5104947]
[1773122039883,1.425,2045.2,2044.8,0.5104947]
[1773122040177,2.64737818,2045.2,2044.8,0.5104947]
[1773122040400,0.53219194,2045.1,2044.8,0.5104947]
[1773122040561,0.53219194,2045.1,2044.9,0.001]
[1773122040756,0.002,2045.0,2044.9,0.001]
[1773122042964,0.002,2045.0,2044.9,0.5114947]
[1773122043892,1.22437818,2045.2,2044.9,0.5114947]
[1773122043893,0.002,2045.4,2045.0,0.50767545]
[1773122044089,1.424,2045.3,2045.0,0.50767545]
[1773122044389,1.96036328,2045.3,2045.0,0.50767545]
[1773122044689,0.53636328,2045.2,2044.9,0.50867545]
[1773122046278,0.53636328,2045.2,2044.9,0.001]
[1773122047795,0.53636328,2045.2,2044.9,0.50867545]
[1773122048968,0.53636328,2045.1,2044.9,0.001]
[1773122050365,1.75884339,2045.1,2044.9,0.001]
[1773122050672,0.53636328,2045.0,2044.9,0.001]
[1773122051195,1.75884339,2045.1,2044.9,0.001]
[1773122052577,0.53636328,2044.9,2044.4,0.001]
[1773122053101,1.22430821,2045.4,2044.9,0.50767545]
[1773122053397,1.22430821,2045.4,2044.4,1.22380268]
[1773122053398,0.53636328,2045.3,2044.5,0.50767545]
[1773122054395,1.22237433,2045.2,2044.5,0.50767545]
[1773122054718,0.53636328,2045.1,2044.5,0.50767545]
[1773122054923,1.96236328,2045.0,2044.5,0.50767545]
[1773122055091,1.96436328,2045.0,2044.5,0.50767545]
[1773122055416,1.96436328,2045.0,2044.9,0.001]
[1773122056500,3.18685716,2045.0,2044.9,0.001]
[1773122056701,3.18685716,2045.0,2044.6,0.50867545]
[1773122060119,0.002,2045.0,2044.7,0.50767545]
[1773122060328,1.428,2044.9,2044.7,0.50767545]
[1773122060707,1.428,2045.0,2044.7,0.50767545]
[1773122061019,2.65050304,2045.0,2044.6,0.001]
[1773122061255,0.53636328,2044.9,2044.6,0.50867545]
[1773122061854,1.75892265,2044.9,2044.6,0.50867545]
[1773122062062,1.22255937,2044.9,2044.6,0.50867545]
[1773122062226,1.428,2045.0,2044.6,0.50867545]
[1773122062227,3.18690178,2045.0,2044.6,0.50867545]
[1773122062822,1.76090178,2045.0,2044.6,0.50867545]
[1773122063024,1.427,2044.9,2044.7,0.50767545]
[1773122063225,0.002,2045.0,2044.7,0.50767545]
[1773122064247,0.002,2045.0,2044.8,0.50767545]
[1773122068151,0.002,2045.0,2044.8,0.50877545]
[1773122069254,0.002,2045.0,2044.9,0.50767545]
[1773122069655,1.43,2045.2,2044.9,0.50767545]
[1773122070370,1.96636328,2045.2,2044.9,0.50767545]
[1773122070675,3.18874753,2045.2,2044.9,0.50767545]
[1773122071543,2.92959772,2045.2,2044.9,0.50767545]
[1773122072485,1.70721347,2045.2,2044.9,0.50767545]
[1773122073270,0.53636328,2045.2,2044.9,0.50767545]
[1773122073462,1.96536328,2045.2,2044.9,0.50767545]
[1773122074856,3.18774128,2045.2,2044.9,0.50767545]
[1773122076070,1.96536328,2045.2,2044.9,0.50767545]
[1773122076605,1.75874381,2045.2,2044.9,0.50767545]
[1773122076811,1.429,2045.1,2044.9,0.50767545]
[1773122078198,1.43,2045.1,2044.9,0.50767545]
[1773122078498,0.51326372,2045.3,2045.0,0.52192101]
[1773122078699,1.43,2045.2,2045.0,0.52192101]
[1773122079584,1.73557927,2045.3,2045.0,0.52192101]
[1773122079780,1.43,2045.2,2045.0,0.52192101]
[1773122081307,1.43,2045.2,2044.8,0.52302101]
[1773122081684,2.65237957,2045.2,2044.8,0.52302101]
[1773122081885,0.002,2045.0,2044.8,0.52302101]
[1773122082282,0.002,2045.0,2044.9,0.001]
[1773122083306,0.002,2045.0,2044.9,0.52292101]
[1773122091806,0.50468178,2045.0,2044.9,0.001]
[1773122092310,0.002,2045.0,2044.9,0.001]
[1773122102830,0.002,2045.0,2044.9,0.5338317]
[1773122108360,1.27382018,2044.7,2044.1,1.76740889]
[1773122108547,0.51350654,2044.8,2044.4,0.54327855]
[1773122109154,2.87328348,2044.7,2044.4,0.54327855]
[1773122109354,0.51350654,2044.8,2044.4,0.54327855]
[1773122109569,2.87142637,2044.7,2044.4,0.54327855]
[1773122109729,0.51350654,2044.8,2044.5,1.7660714]
[1773122109932,2.8714316,2044.7,2044.5,1.7660714]
[1773122110132,0.51350654,2044.8,2044.5,1.7660714]
[1773122110331,2.8708672,2044.7,2044.5,0.54327855]
[1773122110564,0.51350654,2044.8,2044.4,1.22280954]
[1773122110738,3.38427758,2044.7,2044.4,1.76612503]
[1773122110930,0.51350654,2044.7,2044.4,1.76612503]
[1773122113383,0.51350654,2044.9,2044.5,0.54327855]
[1773122113580,2.86801118,2044.8,2044.6,0.54327855]
[1773122113876,0.51350654,2044.9,2044.6,0.54327855]
[1773122114382,0.51350654,2044.9,2044.6,1.76600314]
[1773122117780,0.51350654,2044.9,2044.8,0.001]
[1773122119781,0.51550654,2045.0,2044.8,0.001]
[1773122121188,0.002,2045.0,2044.8,0.001]
[1773122123022,0.002,2045.2,2044.9,0.54327855]
[1773122123903,0.51550654,2045.2,2044.9,0.54327855]
[1773122124304,0.002,2045.2,2045.0,0.54327855]
[1773122127592,0.002,2045.2,2045.0,1.76576999]
[1773122127791,0.51550654,2045.2,2044.9,1.22251831]
[1773122127985,0.51550654,2045.2,2044.9,0.54327855]
[1773122128498,0.002,2045.4,2045.1,0.54327855]
[1773122130428,0.001,2045.2,2045.1,1.76571266]
[1773122130623,0.002,2045.4,2045.2,0.54327855]
[1773122132405,0.002,2045.4,2045.2,1.76563998]
[1773122132834,0.002,2045.6,2045.3,0.54327855]
[1773122133627,0.002,2045.8,2045.5,0.50381125]
[1773122133928,1.73124794,2045.8,2045.5,0.50381125]
[1773122134134,1.73124794,2045.8,2045.3,0.50381125]
[1773122134330,0.50921306,2045.8,2045.3,0.50381125]
[1773122134538,0.50921306,2045.8,2045.4,1.72606606]
[1773122137035,0.50921306,2045.8,2045.5,0.50381125]
[1773122137231,4.88693682,2046.3,2045.6,1.45993547]
[1773122137232,0.50721306,2046.1,2045.6,1.45993547]
[1773122137457,0.50721306,2046.1,2045.4,9.82737279]
[1773122137458,0.50721306,2046.1,2045.4,0.50381125]
[1773122138632,1.22189638,2046.0,2045.5,1.22219506]
[1773122138950,0.50721306,2045.9,2045.5,0.50381125]
[1773122140743,1.221978,2045.9,2045.5,0.50381125]
[1773122140945,0.50721306,2045.8,2045.4,1.22220681]
[1773122142156,0.50721306,2045.8,2045.4,1.22320681]
[1773122142353,0.002,2045.7,2045.4,1.22320681]
[1773122142673,0.50921306,2045.7,2045.4,1.22320681]
[1773122146479,0.002,2045.7,2045.5,0.50381125]
[1773122149872,0.54467525,2045.7,2045.4,0.001]
[1773122150449,0.54467525,2045.7,2045.4,0.50547903]
[1773122153173,0.002,2045.7,2045.4,0.50547903]
[1773122155642,0.002,2045.7,2045.6,0.001]
[1773122157603,0.54467525,2045.7,2045.6,0.001]
[1773122157803,0.54467525,2045.7,2045.4,0.001]
[1773122158006,0.54467525,2045.7,2045.2,0.001]
[1773122158493,1.22213531,2045.6,2045.2,0.001]
[1773122158703,0.54267525,2045.5,2045.2,0.001]
[1773122159070,1.22213531,2045.6,2043.6,5.84916847]
[1773122159071,0.54267525,2045.2,2043.6,5.84916847]
[1773122159269,1.43,2045.4,2044.0,0.50447903]
[1773122159270,0.54267525,2044.6,2044.0,0.50447903]
[1773122159480,0.54267525,2044.5,2044.0,0.50447903]
[1773122160674,1.22275771,2044.6,2044.1,0.50447903]
[1773122160903,1.76543296,2044.6,2044.1,0.50447903]
[1773122161673,0.54267525,2044.5,2044.1,0.50447903]
[1773122161976,0.54267525,2044.5,2043.8,0.50447903]
[1773122162608,0.54267525,2044.2,2043.8,0.50447903]
[1773122163202,0.54267525,2044.2,2043.6,0.50557903]
[1773122163980,0.54267525,2044.2,2043.4,0.0011]
[1773122163981,0.52066296,2043.8,2043.4,0.0011]
[1773122164303,0.52066296,2043.6,2043.1,0.0011]
[1773122164708,1.7440542,2043.5,2043.1,0.0011]
[1773122166688,1.22332202,2043.7,2043.1,1.75377266]
[1773122166891,1.22332202,2043.7,2043.2,0.52908464]
[1773122167382,1.74398498,2043.7,2043.2,0.52908464]
[1773122168009,1.22332202,2043.7,2043.2,0.52908464]
[1773122168212,1.22332202,2043.7,2043.3,0.53018464]
[1773122172122,0.001,2044.0,2043.5,0.52908464]
[1773122173582,0.001,2044.0,2043.7,0.52908464]
[1773122173786,0.001,2044.0,2043.9,0.52908464]
[1773122174907,0.001,2044.0,2043.5,0.52908464]
[1773122176813,0.001,2044.0,2043.6,1.75241601]
[1773122178220,0.001,2044.0,2043.6,1.22333137]
[1773122178417,0.001,2044.0,2043.7,0.52908464]
[1773122180085,0.001,2044.0,2043.7,1.75234287]
[1773122180292,0.001,2044.0,2043.8,0.52908464]
[1773122181292,1.22289483,2044.4,2043.9,0.52908464]
[1773122181293,0.52066296,2044.4,2043.9,0.52908464]
[1773122182088,0.52066296,2044.4,2044.0,1.22309197]
[1773122182284,0.52066296,2044.4,2044.0,1.75217661]
[1773122183819,1.74352364,2044.4,2044.0,0.52908464]
[1773122184015,0.52066296,2044.3,2044.0,0.52908464]
[1773122184217,0.52066296,2044.5,2044.0,1.75213688]
[1773122185313,0.52066296,2044.5,2044.0,0.52908464]
[1773122186443,0.52066296,2044.5,2044.0,1.75217294]
[1773122186444,0.52066296,2044.4,2044.0,1.75217294]
[1773122187128,0.52066296,2044.8,2044.1,0.52908464]
[1773122188696,0.52066296,2044.8,2044.2,1.22297231]
[1773122189028,1.62307089,2045.0,2044.6,0.52908464]
[1773122190034,1.10240793,2045.0,2044.6,0.52908464]
[1773122190997,1.10240793,2045.0,2044.8,0.52908464]
[1773122192125,1.10240793,2045.0,2044.6,1.75177077]
[1773122192627,1.62307089,2045.0,2044.6,1.75177077]
[1773122193215,0.52066296,2044.9,2044.6,1.75177077]
[1773122194411,0.52066296,2044.9,2044.4,0.50615383]
[1773122195239,0.52066296,2044.9,2044.6,0.50615383]
[1773122196643,1.10240793,2045.0,2044.6,0.50615383]
[1773122196816,1.59493977,2045.0,2044.6,0.50615383]
[1773122197015,0.49253184,2045.0,2044.6,0.50615383]
[1773122199454,1.71502983,2045.0,2044.6,0.50615383]
[1773122200450,0.49253184,2045.0,2044.6,1.7288858]
[1773122200948,0.49253184,2044.9,2044.6,0.50615383]
[1773122201148,0.49253184,2044.9,2044.4,0.50615383]
[1773122201654,0.49253184,2044.9,2044.5,1.72894668]
[1773122203525,0.49253184,2044.9,2044.6,0.50615383]
[1773122204250,0.001,2044.8,2044.6,0.50615383]
[1773122205560,0.001,2044.8,2044.6,1.72886392]
[1773122205763,0.001,2044.8,2044.7,0.50615383]
[1773122206461,0.001,2044.8,2044.5,1.72890611]
[1773122206648,0.49353184,2044.8,2044.5,1.72890611]
[1773122206851,0.001,2044.8,2044.6,0.50615383]
[1773122208433,0.001,2044.8,2044.6,1.72886986]
[1773122215077,0.001,2044.8,2044.7,0.50717928]
[1773122217051,0.001,2044.8,2044.6,0.50717928]
[1773122217662,0.52918907,2044.8,2044.4,0.50717928]
[1773122217840,0.001,2044.8,2044.4,0.50717928]
[1773122218987,0.001,2044.8,2044.4,0.30717928]
[1773122219647,0.001,2044.8,2044.6,0.50717928]
[1773122222048,0.001,2044.8,2044.7,1.22267325]
[1773122223366,0.52918907,2044.8,2044.3,1.75301626]
[1773122223863,0.52918907,2044.8,2044.4,0.53013179]
[1773122224053,0.001,2044.8,2044.4,0.53013179]
[1773122225051,0.001,2044.8,2044.5,1.22279285]
[1773122225371,0.001,2044.8,2044.6,0.53013179]
[1773122227347,0.001,2044.8,2044.6,1.75283246]
[1773122227550,0.50039862,2044.8,2044.6,1.22270067]
[1773122227757,0.50039862,2044.8,2044.6,1.22370067]
[1773122228476,0.001,2044.8,2044.6,1.22370067]
[1773122230313,0.50039862,2044.8,2044.6,1.22370067]
[1773122233610,0.001,2044.8,2044.6,1.75383246]
[1773122243505,0.001,2044.8,2044.7,0.53013179]
[1773122243709,0.50139862,2045.1,2044.7,0.53013179]
[1773122244007,0.002,2045.1,2044.7,0.53013179]
[1773122244787,0.002,2045.1,2044.8,1.22261345]
[1773122244990,0.002,2045.1,2044.9,0.53013179]
[1773122247711,0.002,2045.1,2045.0,1.22249388]
[1773122247893,0.002,2045.1,2044.9,1.75264401]
[1773122250925,0.49939862,2045.0,2044.7,1.22267325]
[1773122251124,0.49939862,2045.0,2044.5,1.22274598]
[1773122251426,0.49939862,2045.0,2044.5,1.22374598]
[1773122251788,0.49939862,2045.0,2044.5,1.75387777]
[1773122253188,0.49939862,2045.0,2044.6,0.0011]
[1773122253527,0.001,2044.9,2044.6,0.0011]
[1773122253829,0.50000059,2044.8,2044.6,0.0011]
[1773122258741,0.50000059,2044.8,2044.7,0.001]
[1773122265033,0.50000059,2044.8,2044.7,0.0021]
[1773122265728,0.50100059,2044.8,2044.7,0.0021]
[1773122270817,0.50000059,2044.7,2044.4,0.001]
[1773122271045,0.50000059,2044.7,2044.4,1.22384263]
[1773122272553,0.50000059,2044.7,2044.4,0.001]
[1773122272848,0.50000059,2044.7,2044.4,1.22385213]
[1773122273633,0.50000059,2044.7,2044.4,0.001]
[1773122274548,0.50000059,2044.7,2044.2,0.0011]
[1773122274549,0.50000059,2044.6,2044.2,0.0011]
[1773122274754,0.50000059,2044.6,2044.2,1.22406845]
[1773122275328,0.50000059,2044.6,2044.2,1.70328976]
[1773122276525,0.50000059,2044.6,2044.2,1.22406845]
[1773122276741,0.50000059,2044.6,2044.3,0.47922131]
[1773122277663,0.50000059,2044.6,2044.3,1.70212922]
[1773122278560,0.47816201,2044.5,2044.2,0.0011]
[1773122279265,0.47816201,2044.5,2044.4,0.001]
[1773122279454,0.47816201,2044.5,2044.2,0.0011]
[1773122280059,0.47816201,2044.5,2044.2,1.22407052]
[1773122281433,0.002,2044.6,2044.3,0.47922131]
[1773122281638,0.001,2044.8,2044.3,0.47922131]
[1773122282751,0.002,2045.1,2044.6,0.47922131]
[1773122283578,0.50385739,2045.5,2044.9,0.47439725]
[1773122283776,0.50385739,2045.6,2044.9,0.47439725]
[1773122285178,0.50385739,2045.6,2045.0,1.22249388]
[1773122285379,0.50385739,2045.5,2045.1,0.47439725]
[1773122286550,0.50385739,2045.5,2045.1,1.69681819]
[1773122290294,1.72605576,2045.5,2045.1,0.47439725]
[1773122290604,0.50385739,2045.4,2045.1,0.47439725]
[1773122291701,0.50385739,2045.4,2045.0,0.47439725]
[1773122292485,0.50485739,2045.3,2045.0,0.47439725]
[1773122293694,0.50485739,2045.3,2045.0,1.69684192]
[1773122296371,0.001,2045.3,2045.0,1.69684192]
[1773122297984,0.50485739,2045.3,2044.8,0.0011]
[1773122298589,0.50385739,2045.1,2044.8,0.0011]
[1773122298763,0.50385739,2045.1,2044.5,1.698263]
[1773122298958,0.50385739,2045.1,2044.6,0.47439725]
[1773122300977,0.50385739,2045.0,2044.6,1.69709215]
[1773122301183,0.50385739,2045.0,2044.5,1.22384372]
[1773122301488,0.50385739,2045.0,2044.5,1.69824097]
[1773122302488,0.50385739,2045.0,2044.5,1.69828721]
[1773122303068,1.72636124,2045.0,2044.5,1.69828721]
[1773122303390,0.50385739,2044.9,2044.5,1.69828721]
[1773122304961,0.50385739,2044.9,2044.7,0.001]
[1773122309779,0.50385739,2044.9,2044.5,0.47549725]
[1773122309780,0.50385739,2044.8,2044.5,0.47549725]
[1773122309970,0.50385739,2044.8,2044.5,0.0011]
[1773122310175,0.50385739,2044.8,2044.3,0.47549725]
[1773122310375,0.50385739,2044.8,2044.3,1.69839291]
[1773122312110,0.50385739,2044.7,2044.3,1.69839291]
[1773122314903,0.49761668,2044.6,2044.3,0.47549725]
[1773122315082,0.49761668,2044.6,2044.3,0.0011]
[1773122315287,0.49761668,2044.6,2044.3,1.22400673]
[1773122316096,0.49761668,2044.6,2044.3,0.0011]
[1773122317702,0.49761668,2044.6,2044.5,0.0011]
[1773122320814,0.49761668,2044.6,2044.3,0.0011]
[1773122323019,0.49761668,2044.5,2044.3,0.0011]
[1773122325896,0.49761668,2044.4,2044.3,0.0011]
[1773122326120,0.49761668,2044.4,2044.1,0.001]
[1773122329703,0.49761668,2044.4,2044.3,0.0011]
[1773122329895,0.49761668,2044.3,2044.1,0.001]
[1773122330214,0.49761668,2044.3,2044.0,0.0011]